[Event "Titled Tuesday Blitz July 25 Late 2023"]
[White "Karamsetty, Jeevan"]
[Black "Wu, Derek"]
[WhiteFideId "2025337"]
[BlackFideId "30914558"]
[WhiteElo "2555"]
[BlackElo "2760"]
[Result "1-0"]
[Round "10"]
[TimeControl "180+2"]
[Date "2023.07.25"]
[WhiteClock "0:00:18"]
[BlackClock "0:00:00"]
[Board "28"]

1. e4 {[%clk 0:03:00]}  e5 {[%clk 0:02:59]} 2. Nf3 {[%clk 0:03:00]}  Nc6 {[%clk 0:02:59]} 3. d4 {[%clk 0:02:58]}  exd4 {[%clk 0:02:59]} 4. Bc4 {[%clk 0:02:58]}  Bc5 {[%clk 0:02:57]} 5. Ng5 {[%clk 0:02:58]}  Nh6 {[%clk 0:02:40]} 6. Nxf7 {[%clk 0:02:58]}  Nxf7 {[%clk 0:02:41]} 7. Bxf7+ {[%clk 0:02:58]}  Kxf7 {[%clk 0:02:42]} 8. Qh5+ {[%clk 0:02:58]}  Kf8 {[%clk 0:02:38]} 9. Qxc5+ {[%clk 0:02:59]}  d6 {[%clk 0:02:39]} 10. Qb5 {[%clk 0:02:39]}  Qe8 {[%clk 0:02:36]} 11. Qe2 {[%clk 0:02:34]}  Qg6 {[%clk 0:02:25]} 12. O-O {[%clk 0:02:32]}  Bg4 {[%clk 0:02:04]} 13. f3 {[%clk 0:02:27]}  Bd7 {[%clk 0:01:55]} 14. Nd2 {[%clk 0:02:13]}  Kf7 {[%clk 0:01:47]} 15. Nb3 {[%clk 0:02:11]}  Rhe8 {[%clk 0:01:39]} 16. Rd1 {[%clk 0:01:59]}  Qf6 {[%clk 0:01:32]} 17. Qf2 {[%clk 0:01:53]}  Kg8 {[%clk 0:01:25]} 18. Nxd4 {[%clk 0:01:50]}  Ne5 {[%clk 0:01:25]} 19. c3 {[%clk 0:01:44]}  Rf8 {[%clk 0:01:24]} 20. Qg3 {[%clk 0:01:39]}  Rae8 {[%clk 0:01:21]} 21. Nb3 {[%clk 0:01:24]}  Bb5 {[%clk 0:01:12]} 22. Be3 {[%clk 0:01:21]}  Be2 {[%clk 0:01:07]} 23. Re1 {[%clk 0:01:09]}  Bxf3 {[%clk 0:01:06]} 24. Rf1 {[%clk 0:00:56]}  c5 {[%clk 0:00:43]} 25. Nd2 {[%clk 0:00:49]}  Qe6 {[%clk 0:00:35]} 26. Nxf3 {[%clk 0:00:43]}  Nc4 {[%clk 0:00:30]} 27. Bf4 {[%clk 0:00:25]}  Qxe4 {[%clk 0:00:27]} 28. Bxd6 {[%clk 0:00:24]}  Rf6 {[%clk 0:00:24]} 29. Bxc5 {[%clk 0:00:23]}  Rg6 {[%clk 0:00:22]} 30. Qf2 {[%clk 0:00:23]}  Qf5 {[%clk 0:00:16]} 31. Rae1 {[%clk 0:00:19]}  Rd8 {[%clk 0:00:12]} 32. Bd4 {[%clk 0:00:19]}  h6 {[%clk 0:00:11]} 33. Nh4 {[%clk 0:00:18]}  Qxf2+ {[%clk 0:00:09]} 34. Rxf2 {[%clk 0:00:19]}  Ra6 {[%clk 0:00:00]} 35. Re7 {[%clk 0:00:18]} 1-0


[Site "https://www.chess.com"]

[Event "Titled Tuesday Blitz July 25 Late 2023"]
[White "Grossboss19"]
[Black "Matinian, Nikita"]
[BlackFideId "24129100"]
[WhiteElo "2494"]
[BlackElo "2738"]
[Result "0-1"]
[Round "10"]
[TimeControl "180+2"]
[Date "2023.07.25"]
[WhiteClock "0:00:10"]
[BlackClock "0:00:06"]
[Board "29"]

1. c4 {[%clk 0:02:47]}  e5 {[%clk 0:02:59]} 2. g3 {[%clk 0:02:46]}  h5 {[%clk 0:02:59]} 3. h4 {[%clk 0:02:44]}  Bc5 {[%clk 0:02:55]} 4. Bg2 {[%clk 0:02:43]}  d6 {[%clk 0:02:54]} 5. e3 {[%clk 0:02:42]}  Nc6 {[%clk 0:02:50]} 6. Ne2 {[%clk 0:02:42]}  Bg4 {[%clk 0:02:47]} 7. a3 {[%clk 0:02:35]}  a5 {[%clk 0:02:46]} 8. Nbc3 {[%clk 0:02:34]}  Nge7 {[%clk 0:02:43]} 9. Nb5 {[%clk 0:02:20]}  Qd7 {[%clk 0:02:28]} 10. O-O {[%clk 0:01:33]}  g5 {[%clk 0:02:27]} 11. f3 {[%clk 0:01:30]}  Be6 {[%clk 0:02:15]} 12. b3 {[%clk 0:01:22]}  gxh4 {[%clk 0:02:15]} 13. d4 {[%clk 0:01:22]}  Bb6 {[%clk 0:01:47]} 14. d5 {[%clk 0:01:18]}  Bh3 {[%clk 0:01:42]} 15. dxc6 {[%clk 0:01:14]}  bxc6 {[%clk 0:01:43]} 16. Nbc3 {[%clk 0:01:13]}  hxg3 {[%clk 0:01:42]} 17. f4 {[%clk 0:01:02]}  h4 {[%clk 0:01:32]} 18. Bf3 {[%clk 0:00:43]}  Bxf1 {[%clk 0:01:31]} 19. Qxf1 {[%clk 0:00:44]}  exf4 {[%clk 0:01:17]} 20. Nxf4 {[%clk 0:00:41]}  h3 {[%clk 0:01:16]} 21. Qd3 {[%clk 0:00:27]}  O-O-O {[%clk 0:01:04]} 22. c5 {[%clk 0:00:23]}  Bxc5 {[%clk 0:00:52]} 23. Na4 {[%clk 0:00:20]}  Ba7 {[%clk 0:00:41]} 24. Bd2 {[%clk 0:00:19]}  g2 {[%clk 0:00:39]} 25. Qa6+ {[%clk 0:00:19]}  Kb8 {[%clk 0:00:39]} 26. Kh2 {[%clk 0:00:20]}  Rdg8 {[%clk 0:00:38]} 27. Bxa5 {[%clk 0:00:18]}  Bxe3 {[%clk 0:00:29]} 28. Ne2 {[%clk 0:00:15]}  Qf5 {[%clk 0:00:23]} 29. Bxc6 {[%clk 0:00:11]}  Bf4+ {[%clk 0:00:17]} 30. Kg1 {[%clk 0:00:11]}  h2+ {[%clk 0:00:17]} 31. Kf2 {[%clk 0:00:11]}  Nxc6 {[%clk 0:00:09]} 32. Qxc6 {[%clk 0:00:10]}  Bd2+ {[%clk 0:00:08]} 33. Nf4 {[%clk 0:00:10]}  Qxf4+ {[%clk 0:00:08]} 34. Ke2 {[%clk 0:00:11]}  Qe3+ {[%clk 0:00:07]} 35. Kd1 {[%clk 0:00:11]}  g1=Q+ {[%clk 0:00:07]} 36. Kc2 {[%clk 0:00:12]}  Qc5+ {[%clk 0:00:05]} 37. Nxc5 {[%clk 0:00:11]}  Qxc5+ {[%clk 0:00:05]} 38. Qxc5 {[%clk 0:00:11]}  dxc5 {[%clk 0:00:06]} 39. Bxd2 {[%clk 0:00:05]}  h1=Q {[%clk 0:00:06]} 40. Rxh1 {[%clk 0:00:06]}  Rxh1 {[%clk 0:00:06]} 41. Kd3 {[%clk 0:00:06]}  Rd8+ {[%clk 0:00:05]} 42. Kc4 {[%clk 0:00:05]}  Rxd2 {[%clk 0:00:05]} 43. Kb5 {[%clk 0:00:06]}  Rd6 {[%clk 0:00:05]} 44. Ka5 {[%clk 0:00:07]}  c4 {[%clk 0:00:05]} 45. b4 {[%clk 0:00:08]}  c3 {[%clk 0:00:05]} 46. b5 {[%clk 0:00:08]}  c2 {[%clk 0:00:06]} 47. b6 {[%clk 0:00:09]}  cxb6+ {[%clk 0:00:06]} 48. Ka6 {[%clk 0:00:09]}  c1=Q {[%clk 0:00:06]} 49. a4 {[%clk 0:00:10]}  Qc4# {[%clk 0:00:06]} 0-1


[Site "https://www.chess.com"]

[Event "Titled Tuesday Blitz July 25 Late 2023"]
[White "Adewumi, Tanitoluwa"]
[Black "Slovineanu, Viacheslav"]
[WhiteFideId "30966396"]
[BlackFideId "13900510"]
[WhiteElo "2696"]
[BlackElo "2430"]
[Result "1-0"]
[Round "10"]
[TimeControl "180+2"]
[Date "2023.07.25"]
[WhiteClock "0:00:03"]
[BlackClock "0:00:00"]
[Board "30"]

1. e4 {[%clk 0:02:52]}  c6 {[%clk 0:02:59]} 2. d4 {[%clk 0:02:51]}  d5 {[%clk 0:03:00]} 3. exd5 {[%clk 0:02:52]}  cxd5 {[%clk 0:03:00]} 4. Bd3 {[%clk 0:02:53]}  Nc6 {[%clk 0:02:59]} 5. c3 {[%clk 0:02:53]}  Nf6 {[%clk 0:02:59]} 6. Bf4 {[%clk 0:02:50]}  Bg4 {[%clk 0:02:58]} 7. Qb3 {[%clk 0:02:50]}  Qd7 {[%clk 0:02:57]} 8. Nd2 {[%clk 0:02:50]}  e6 {[%clk 0:02:57]} 9. Ngf3 {[%clk 0:02:51]}  Bxf3 {[%clk 0:02:57]} 10. Nxf3 {[%clk 0:02:52]}  Bd6 {[%clk 0:02:57]} 11. Bd2 {[%clk 0:02:53]}  O-O {[%clk 0:02:54]} 12. O-O {[%clk 0:02:52]}  a6 {[%clk 0:02:53]} 13. Rfe1 {[%clk 0:02:52]}  Qc7 {[%clk 0:02:48]} 14. a4 {[%clk 0:02:44]}  Rfe8 {[%clk 0:02:33]} 15. Re2 {[%clk 0:02:40]}  e5 {[%clk 0:02:31]} 16. dxe5 {[%clk 0:02:39]}  Nxe5 {[%clk 0:02:30]} 17. Nxe5 {[%clk 0:02:39]}  Rxe5 {[%clk 0:02:18]} 18. Rxe5 {[%clk 0:02:36]}  Bxe5 {[%clk 0:02:18]} 19. g3 {[%clk 0:02:36]}  h6 {[%clk 0:02:04]} 20. Re1 {[%clk 0:02:34]}  Bd6 {[%clk 0:01:47]} 21. Qd1 {[%clk 0:02:28]}  Bc5 {[%clk 0:01:42]} 22. Qf3 {[%clk 0:02:25]}  Qb6 {[%clk 0:01:38]} 23. b4 {[%clk 0:02:21]}  Bf8 {[%clk 0:01:32]} 24. Be3 {[%clk 0:02:15]}  Qc6 {[%clk 0:01:24]} 25. Bd4 {[%clk 0:02:10]}  Qxa4 {[%clk 0:01:12]} 26. b5 {[%clk 0:01:22]}  axb5 {[%clk 0:00:59]} 27. Qf5 {[%clk 0:01:15]}  Ne4 {[%clk 0:00:37]} 28. Rxe4 {[%clk 0:00:51]}  Qd1+ {[%clk 0:00:34]} 29. Re1 {[%clk 0:00:40]}  Qxe1+ {[%clk 0:00:34]} 30. Kg2 {[%clk 0:00:37]}  f6 {[%clk 0:00:32]} 31. Qxd5+ {[%clk 0:00:30]}  Kh8 {[%clk 0:00:30]} 32. Qf5 {[%clk 0:00:30]}  Kg8 {[%clk 0:00:30]} 33. Bxf6 {[%clk 0:00:09]}  Re8 {[%clk 0:00:08]} 34. Bd4 {[%clk 0:00:07]}  Qe6 {[%clk 0:00:05]} 35. Qh7+ {[%clk 0:00:02]}  Kf7 {[%clk 0:00:05]} 36. Bf5 {[%clk 0:00:01]}  Qd5+ {[%clk 0:00:03]} 37. Kh3 {[%clk 0:00:01]}  Qc6 {[%clk 0:00:03]} 38. Bg4 {[%clk 0:00:01]}  Qg6 {[%clk 0:00:01]} 39. Qxg6+ {[%clk 0:00:01]}  Kxg6 {[%clk 0:00:01]} 40. Bd7 {[%clk 0:00:02]}  Rd8 {[%clk 0:00:01]} 41. Bxb5 {[%clk 0:00:03]}  Rxd4 {[%clk 0:00:00]} 42. cxd4 {[%clk 0:00:03]} 1-0


[Site "https://www.chess.com"]

[Event "Titled Tuesday Blitz July 25 Late 2023"]
[White "Medina Paz, Miguel"]
[Black "Miladinovic, Igor"]
[WhiteFideId "7300379"]
[BlackFideId "4203380"]
[WhiteElo "2595"]
[BlackElo "2813"]
[Result "1-0"]
[Round "10"]
[TimeControl "180+2"]
[Date "2023.07.25"]
[WhiteClock "0:01:07"]
[BlackClock "0:00:00"]
[Board "32"]

1. e4 {[%clk 0:03:00]}  c6 {[%clk 0:02:59]} 2. d4 {[%clk 0:03:00]}  d5 {[%clk 0:03:00]} 3. exd5 {[%clk 0:03:01]}  cxd5 {[%clk 0:03:00]} 4. Nf3 {[%clk 0:03:02]}  Nc6 {[%clk 0:02:59]} 5. Nbd2 {[%clk 0:03:02]}  g6 {[%clk 0:02:59]} 6. Bb5 {[%clk 0:03:02]}  Bg7 {[%clk 0:02:59]} 7. O-O {[%clk 0:03:02]}  Nh6 {[%clk 0:02:56]} 8. Bxc6+ {[%clk 0:02:53]}  bxc6 {[%clk 0:02:56]} 9. Re1 {[%clk 0:02:53]}  f6 {[%clk 0:02:53]} 10. b3 {[%clk 0:02:52]}  O-O {[%clk 0:02:52]} 11. Ba3 {[%clk 0:02:52]}  Re8 {[%clk 0:02:50]} 12. c4 {[%clk 0:02:51]}  e5 {[%clk 0:02:48]} 13. cxd5 {[%clk 0:02:48]}  cxd5 {[%clk 0:02:48]} 14. dxe5 {[%clk 0:02:49]}  fxe5 {[%clk 0:02:48]} 15. Rc1 {[%clk 0:02:41]}  e4 {[%clk 0:02:45]} 16. Qe2 {[%clk 0:02:31]}  Bg4 {[%clk 0:02:41]} 17. h3 {[%clk 0:02:30]}  Bh5 {[%clk 0:02:39]} 18. g4 {[%clk 0:02:24]}  Nxg4 {[%clk 0:02:37]} 19. hxg4 {[%clk 0:02:23]}  Bxg4 {[%clk 0:02:38]} 20. Qf1 {[%clk 0:02:06]}  exf3 {[%clk 0:02:31]} 21. Rxe8+ {[%clk 0:02:04]}  Qxe8 {[%clk 0:02:31]} 22. Qd3 {[%clk 0:02:02]}  Qf7 {[%clk 0:02:21]} 23. Rc7 {[%clk 0:01:59]}  Bf5 {[%clk 0:01:52]} 24. Qb5 {[%clk 0:01:49]}  Qe8 {[%clk 0:01:16]} 25. Qxd5+ {[%clk 0:01:47]}  Be6 {[%clk 0:01:13]} 26. Rxg7+ {[%clk 0:01:42]}  Kxg7 {[%clk 0:01:12]} 27. Bb2+ {[%clk 0:01:43]}  Kf7 {[%clk 0:00:53]} 28. Qe5 {[%clk 0:01:39]}  Qe7 {[%clk 0:00:29]} 29. Ne4 {[%clk 0:01:38]}  Ke8 {[%clk 0:00:16]} 30. Qh8+ {[%clk 0:01:28]}  Qf8 {[%clk 0:00:16]} 31. Nf6+ {[%clk 0:01:28]}  Kf7 {[%clk 0:00:07]} 32. Qxh7+ {[%clk 0:01:28]}  Qg7 {[%clk 0:00:08]} 33. Qh2 {[%clk 0:01:27]}  Rc8 {[%clk 0:00:06]} 34. Qf4 {[%clk 0:01:23]}  g5 {[%clk 0:00:03]} 35. Qxf3 {[%clk 0:01:17]}  Qg6 {[%clk 0:00:00]} 36. Qb7+ {[%clk 0:01:07]} 1-0


[Site "https://www.chess.com"]

[Event "Titled Tuesday Blitz July 25 Late 2023"]
[White "Cappelletto, Joshuaede"]
[Black "Troff, Kayden"]
[WhiteFideId "2824383"]
[BlackFideId "2047896"]
[WhiteElo "2592"]
[BlackElo "2798"]
[Result "0-1"]
[Round "10"]
[TimeControl "180+2"]
[Date "2023.07.25"]
[WhiteClock "0:00:13"]
[BlackClock "0:00:20"]
[Board "33"]

1. e4 {[%clk 0:03:00]}  c5 {[%clk 0:02:59]} 2. Nf3 {[%clk 0:03:01]}  g6 {[%clk 0:03:00]} 3. d4 {[%clk 0:03:00]}  cxd4 {[%clk 0:03:01]} 4. Nxd4 {[%clk 0:03:00]}  Bg7 {[%clk 0:03:01]} 5. c4 {[%clk 0:02:59]}  Qb6 {[%clk 0:03:01]} 6. Nb5 {[%clk 0:02:54]}  a6 {[%clk 0:02:59]} 7. Be3 {[%clk 0:02:53]}  Qa5+ {[%clk 0:02:59]} 8. N5c3 {[%clk 0:02:53]}  Nf6 {[%clk 0:02:55]} 9. Nd2 {[%clk 0:02:53]}  Nc6 {[%clk 0:02:50]} 10. Be2 {[%clk 0:02:52]}  O-O {[%clk 0:02:49]} 11. O-O {[%clk 0:02:52]}  d6 {[%clk 0:02:49]} 12. Nd5 {[%clk 0:02:51]}  b5 {[%clk 0:02:31]} 13. Bb6 {[%clk 0:02:15]}  Qa4 {[%clk 0:02:24]} 14. b3 {[%clk 0:02:11]}  Qa3 {[%clk 0:02:24]} 15. cxb5 {[%clk 0:02:08]}  axb5 {[%clk 0:02:20]} 16. Bxb5 {[%clk 0:02:07]}  Nxd5 {[%clk 0:02:05]} 17. exd5 {[%clk 0:02:03]}  Ne5 {[%clk 0:01:51]} 18. Bd4 {[%clk 0:01:16]}  Qb4 {[%clk 0:01:22]} 19. Bc4 {[%clk 0:01:16]}  Ba6 {[%clk 0:01:14]} 20. a3 {[%clk 0:01:08]}  Qb7 {[%clk 0:01:09]} 21. a4 {[%clk 0:00:58]}  Rfc8 {[%clk 0:00:45]} 22. Bxa6 {[%clk 0:00:47]}  Rxa6 {[%clk 0:00:41]} 23. Rb1 {[%clk 0:00:45]}  Qxd5 {[%clk 0:00:38]} 24. Bxe5 {[%clk 0:00:43]}  Bxe5 {[%clk 0:00:34]} 25. Nc4 {[%clk 0:00:44]}  Qxd1 {[%clk 0:00:31]} 26. Rfxd1 {[%clk 0:00:45]}  Bc3 {[%clk 0:00:26]} 27. Rd5 {[%clk 0:00:37]}  Bb4 {[%clk 0:00:21]} 28. Rb5 {[%clk 0:00:34]}  Bc5 {[%clk 0:00:21]} 29. a5 {[%clk 0:00:28]}  d5 {[%clk 0:00:20]} 30. Nb6 {[%clk 0:00:28]}  Bxb6 {[%clk 0:00:20]} 31. axb6 {[%clk 0:00:27]}  e6 {[%clk 0:00:17]} 32. b7 {[%clk 0:00:22]}  Rb8 {[%clk 0:00:17]} 33. Rc1 {[%clk 0:00:22]}  Ra7 {[%clk 0:00:18]} 34. Kf1 {[%clk 0:00:14]}  Raxb7 {[%clk 0:00:17]} 35. Rxb7 {[%clk 0:00:13]}  Rxb7 {[%clk 0:00:18]} 36. Rc3 {[%clk 0:00:14]}  Kg7 {[%clk 0:00:18]} 37. Ke2 {[%clk 0:00:14]}  Kf6 {[%clk 0:00:18]} 38. Kd3 {[%clk 0:00:15]}  Ke5 {[%clk 0:00:18]} 39. Kc2 {[%clk 0:00:15]}  Kd6 {[%clk 0:00:18]} 40. Kb2 {[%clk 0:00:14]}  d4 {[%clk 0:00:18]} 41. Rd3 {[%clk 0:00:14]}  e5 {[%clk 0:00:18]} 42. f3 {[%clk 0:00:14]}  Kd5 {[%clk 0:00:18]} 43. Rd1 {[%clk 0:00:15]}  f5 {[%clk 0:00:19]} 44. g3 {[%clk 0:00:15]}  e4 {[%clk 0:00:19]} 45. fxe4+ {[%clk 0:00:13]}  fxe4 {[%clk 0:00:20]} 0-1


[Site "https://www.chess.com"]

[Event "Titled Tuesday Blitz July 25 Late 2023"]
[White "Morefield, Jason"]
[Black "Trifan, Andrei Ioan"]
[WhiteFideId "30920825"]
[BlackFideId "12967068"]
[WhiteElo "2743"]
[BlackElo "2587"]
[Result "1-0"]
[Round "10"]
[TimeControl "180+2"]
[Date "2023.07.25"]
[WhiteClock "0:00:04"]
[BlackClock "0:00:05"]
[Board "34"]

1. e4 {[%clk 0:02:58]}  g6 {[%clk 0:02:57]} 2. d4 {[%clk 0:02:52]}  Bg7 {[%clk 0:02:57]} 3. Nc3 {[%clk 0:02:48]}  d6 {[%clk 0:02:53]} 4. Be3 {[%clk 0:02:48]}  Nf6 {[%clk 0:02:50]} 5. Qd2 {[%clk 0:02:41]}  c6 {[%clk 0:02:48]} 6. h3 {[%clk 0:02:38]}  b5 {[%clk 0:02:46]} 7. a3 {[%clk 0:02:36]}  Nbd7 {[%clk 0:02:42]} 8. Nf3 {[%clk 0:02:31]}  e5 {[%clk 0:02:37]} 9. dxe5 {[%clk 0:02:24]}  dxe5 {[%clk 0:02:37]} 10. O-O-O {[%clk 0:02:12]}  Qa5 {[%clk 0:02:34]} 11. Qd6 {[%clk 0:02:05]}  b4 {[%clk 0:02:19]} 12. axb4 {[%clk 0:01:55]}  Qa1+ {[%clk 0:02:15]} 13. Nb1 {[%clk 0:01:55]}  Rb8 {[%clk 0:01:56]} 14. Nxe5 {[%clk 0:01:46]}  Nxe4 {[%clk 0:01:49]} 15. Qxc6 {[%clk 0:01:26]}  Bxe5 {[%clk 0:01:39]} 16. Rd4 {[%clk 0:01:16]}  O-O {[%clk 0:01:25]} 17. Qxe4 {[%clk 0:01:10]}  Bxd4 {[%clk 0:01:17]} 18. Qxd4 {[%clk 0:01:11]}  Re8 {[%clk 0:00:59]} 19. Bh6 {[%clk 0:00:58]}  Re1+ {[%clk 0:00:51]} 20. Kd2 {[%clk 0:00:56]}  Re5 {[%clk 0:00:39]} 21. f4 {[%clk 0:00:52]}  a5 {[%clk 0:00:24]} 22. fxe5 {[%clk 0:00:47]}  Rxb4 {[%clk 0:00:23]} 23. Qc3 {[%clk 0:00:46]}  Nb6 {[%clk 0:00:04]} 24. e6 {[%clk 0:00:44]}  Qxb2 {[%clk 0:00:04]} 25. exf7+ {[%clk 0:00:30]}  Kxf7 {[%clk 0:00:03]} 26. Qf3+ {[%clk 0:00:27]}  Bf5 {[%clk 0:00:03]} 27. Bd3 {[%clk 0:00:22]}  Nc4+ {[%clk 0:00:04]} 28. Ke2 {[%clk 0:00:21]}  Qe5+ {[%clk 0:00:04]} 29. Kf2 {[%clk 0:00:20]}  Qc5+ {[%clk 0:00:04]} 30. Kg3 {[%clk 0:00:18]}  Ne5 {[%clk 0:00:05]} 31. Qe3 {[%clk 0:00:14]}  Nxd3 {[%clk 0:00:05]} 32. cxd3 {[%clk 0:00:13]}  Qd6+ {[%clk 0:00:04]} 33. Bf4 {[%clk 0:00:13]}  Qxd3 {[%clk 0:00:04]} 34. Qxd3 {[%clk 0:00:13]}  Bxd3 {[%clk 0:00:05]} 35. Nd2 {[%clk 0:00:13]}  a4 {[%clk 0:00:06]} 36. Ra1 {[%clk 0:00:13]}  Bb5 {[%clk 0:00:06]} 37. Nf3 {[%clk 0:00:11]}  Rb3 {[%clk 0:00:06]} 38. Kf2 {[%clk 0:00:11]}  Rb2+ {[%clk 0:00:06]} 39. Bd2 {[%clk 0:00:08]}  Bc6 {[%clk 0:00:06]} 40. Ke3 {[%clk 0:00:08]}  Rb3+ {[%clk 0:00:06]} 41. Kd4 {[%clk 0:00:08]}  Bxf3 {[%clk 0:00:06]} 42. gxf3 {[%clk 0:00:08]}  Rxf3 {[%clk 0:00:07]} 43. h4 {[%clk 0:00:06]}  Rh3 {[%clk 0:00:08]} 44. Bg5 {[%clk 0:00:04]}  h6 {[%clk 0:00:08]} 45. Bd8 {[%clk 0:00:03]}  Ke8 {[%clk 0:00:08]} 46. Bf6 {[%clk 0:00:04]}  Kf7 {[%clk 0:00:08]} 47. Rf1 {[%clk 0:00:04]}  Kg8 {[%clk 0:00:08]} 48. Kd5 {[%clk 0:00:02]}  g5 {[%clk 0:00:08]} 49. hxg5 {[%clk 0:00:02]}  hxg5 {[%clk 0:00:09]} 50. Ke6 {[%clk 0:00:03]}  Re3+ {[%clk 0:00:09]} 51. Kf5 {[%clk 0:00:03]}  a3 {[%clk 0:00:08]} 52. Kg6 {[%clk 0:00:03]}  Kf8 {[%clk 0:00:06]} 53. Rd1 {[%clk 0:00:02]}  a2 {[%clk 0:00:05]} 54. Ra1 {[%clk 0:00:01]}  Ke8 {[%clk 0:00:04]} 55. Rxa2 {[%clk 0:00:02]}  Kd7 {[%clk 0:00:05]} 56. Rd2+ {[%clk 0:00:02]}  Kc6 {[%clk 0:00:05]} 57. Bxg5 {[%clk 0:00:03]}  Re6+ {[%clk 0:00:05]} 58. Kf5 {[%clk 0:00:03]}  Rd6 {[%clk 0:00:06]} 59. Rc2+ {[%clk 0:00:04]}  Kd7 {[%clk 0:00:06]} 60. Bf4 {[%clk 0:00:05]}  Rd5+ {[%clk 0:00:07]} 61. Ke4 {[%clk 0:00:05]}  Ra5 {[%clk 0:00:07]} 62. Rc7+ {[%clk 0:00:06]}  Ke6 {[%clk 0:00:07]} 63. Rc6+ {[%clk 0:00:06]}  Kd7 {[%clk 0:00:08]} 64. Rh6 {[%clk 0:00:06]}  Ra4+ {[%clk 0:00:08]} 65. Kf5 {[%clk 0:00:07]}  Ra5+ {[%clk 0:00:09]} 66. Be5 {[%clk 0:00:07]}  Ra2 {[%clk 0:00:09]} 67. Rd6+ {[%clk 0:00:07]}  Ke7 {[%clk 0:00:09]} 68. Rc6 {[%clk 0:00:06]}  Rf2+ {[%clk 0:00:09]} 69. Bf4 {[%clk 0:00:07]}  Re2 {[%clk 0:00:10]} 70. Rc7+ {[%clk 0:00:07]}  Kd8 {[%clk 0:00:10]} 71. Ra7 {[%clk 0:00:07]}  Kc8 {[%clk 0:00:10]} 72. Be5 {[%clk 0:00:07]}  Rc2 {[%clk 0:00:09]} 73. Ke6 {[%clk 0:00:07]}  Rc6+ {[%clk 0:00:10]} 74. Bd6 {[%clk 0:00:07]}  Rb6 {[%clk 0:00:10]} 75. Rc7+ {[%clk 0:00:04]}  Kb8 {[%clk 0:00:10]} 76. Rf7+ {[%clk 0:00:04]}  Ka8 {[%clk 0:00:10]} 77. Kd5 {[%clk 0:00:04]}  Rb5+ {[%clk 0:00:09]} 78. Kc6 {[%clk 0:00:04]}  Rb6+ {[%clk 0:00:10]} 79. Kc5 {[%clk 0:00:04]}  Ra6 {[%clk 0:00:09]} 80. Rf8+ {[%clk 0:00:04]}  Kb7 {[%clk 0:00:09]} 81. Rb8+ {[%clk 0:00:04]}  Ka7 {[%clk 0:00:09]} 82. Rb1 {[%clk 0:00:05]}  Ra5+ {[%clk 0:00:10]} 83. Kc6 {[%clk 0:00:06]}  Ra2 {[%clk 0:00:09]} 84. Bc5+ {[%clk 0:00:05]}  Ka8 {[%clk 0:00:09]} 85. Rh1 {[%clk 0:00:04]}  Ra6+ {[%clk 0:00:10]} 86. Bb6 {[%clk 0:00:04]}  Rxb6+ {[%clk 0:00:05]} 87. Kxb6 {[%clk 0:00:04]} 1-0


[Site "https://www.chess.com"]